Cogmind - Beta 16.1 @@@ ROGUE MODE // 2026.03.22 @ 22:22:37 Player: Skythe Result: Self-destructed Performance ------------- Evolutions (1) 500 Regions Visited (2) 400 Robots Destroyed (8) 40 Value Destroyed (176) 176 Prototype IDs (0) 0 Alien Tech Used (0) 0 Bonus (0) 0 TOTAL SCORE: 1116 Bonus ------- None Cogmind --------- Core Integrity 260/400 Matter 181/300 Energy 275/275 System Corruption 0% Temperature Hot (237) Movement Core (450) Ox8 Location -9/Materials Parts ------- > --- POWER (1) -------- Deuterium Engine > --- PROPULSION (3) --- (None) > --- UTILITY (3) ------ Small Storage Unit > --- WEAPON (2) ------- Heavy Particle Cannon Heavy Particle Cannon > --- INVENTORY (8) ---- Deuterium Engine Deuterium Engine Weapon Shielding Heavy Particle Cannon Heavy Particle Cannon Assault Rifle Mining Laser Peak State ------------ > --- POWER ------------ Deuterium Engine > --- PROPULSION ------- Light Treads Light Treads > --- UTILITY ---------- Small Storage Unit > --- WEAPON ----------- Heavy Particle Cannon Heavy Particle Cannon > --- INVENTORY -------- Deuterium Engine Deuterium Engine Weapon Shielding Heavy Particle Cannon Assault Rifle Mining Laser [Rating: 13] Favorites ----------- Power Ion Engine Engine Ion Engine Propulsion Light Treads Treads Light Treads Flight Unit Flight Unit Utility Small Storage Unit Storage Small Storage Unit Protection Weapon Shielding Weapon Assault Rifle Energy Gun EM Pulse Gun Energy Cannon Heavy Particle Cannon Ballistic Gun Assault Rifle Build | -11 -10 -9 ------- Run | Yrd Mat Mat Slots Evolved 2 | . . 2 Power . | . . . Propulsion 1 | . . 1 Utility 1 | . . 1 Weapon . | . . . Parts Attached 13 | 6 1 6 Power 2 | 1 . 1 Engine 2 | 1 . 1 Core . | . . . Reactor . | . . . Propulsion 5 | 2 . 3 Treads 2 | 2 . . Leg . | . . . Wheel . | . . . Hover . | . . . Flight 3 | . . 3 Utility 2 | 1 1 . Device . | . . . Storage 1 | 1 . . Processor . | . . . Hackware . | . . . Protection 1 | . 1 . Artifact . | . . . Weapon 4 | 2 . 2 Energy Gun 1 | 1 . . Energy Cannon 2 | . . 2 Ballistic Gun 1 | 1 . . Ballistic Cannon . | . . . Launcher . | . . . Special Weapon . | . . . Impact Weapon . | . . . Slashing Weapon . | . . . Piercing Weapon . | . . . Special Melee Weapon . | . . . Unidentified Prototypes . | . . . Parts Lost 2 | . . 2 Power . | . . . Propulsion 2 | . . 2 Utility . | . . . Weapon . | . . . Highest Loss Streak 2 | . . 2 To Critical Strikes . | . . . Average Backups 2 | . 1 5 Power . | . . . Propulsion . | . . 1 Utility . | . . . Weapon 1 | . . 2 Tool/Special . | . . . Unused Backups 6 | 1 . 5 Power 2 | . . 2 Propulsion 1 | . . 1 Utility . | . . . Weapon 3 | 1 . 2 Tool/Special . | . . . Average Slot Usage (%) 83 | . 88 64 Engine 13 | . 14 11 Treads 24 | . 28 11 Flight 2 | . . 12 Storage 13 | . 14 11 Protection 2 | . 3 1 Energy Gun 11 | . 14 1 Energy Cannon 2 | . . 9 Ballistic Gun 12 | . 14 6 Peak Build Rating 13 | 6 7 13 Average Rating 6 | 4 6 9 On Entrance 4 | . 6 7 Avg Prop Armor Cover (%) . | . . . Naked Turns . | . . . Heaviest Build 26 | 14 15 26 Greatest Support 40 | 40 40 40 Greatest Overweight (x) 8 | . . 8 Average Overweight (x) . | . . . Largest Inventory Capacity 8 | 8 8 8 Average Capacity 7 | 6 8 8 Most Carried 8 | 5 5 8 Average Carried 2 | . 1 5 Final Capacity 8 | 8 8 8 Final Carried 7 | . 4 7 Class Distribution -------------------- 100% | Mutant Dominant Class ---------------- Mutant | -10/Materials Mutant | -9/Materials Resources | -11 -10 -9 ----------- Run | Yrd Mat Mat Matter Collected 344 | 219 45 80 Remotely . | . . . Salvage Created 229 | . 45 184 Parts 17 | . 4 13 Haulers Intercepted . | . . . Recyclers Shooed . | . . . Parts Field Recycled . | . . . Retrieved Matter . | . . . Parts Self-Destructed . | . . . Prevented . | . . . Parts Restored . | . . . Kills | -11 -10 -9 ------- Run | Yrd Mat Mat Combat Hostiles Destroyed 8 | . 3 5 Guns 5 | . 3 2 Cannons 3 | . . 3 Classes Destroyed 2 | . 1 1 Swarmer 4 | . 3 1 Grunt 4 | . . 4 Best Kill Streak 3 | . 3 3 Combat Bots Only 3 | . 3 3 Max Kills in Single Turn 1 | . 1 1 Gunslinging . | . . . Exploded . | . . . Melee . | . . . Uniques/NPCs Destroyed . | . . . Combat | -11 -10 -9 -------- Run | Yrd Mat Mat Hostile Shots Fired 141 | . 37 104 Missed 33 | . 10 23 Hits 108 | . 27 81 Projectile 108 | . 27 81 Critical Strikes 1 | . . 1 Damage Taken 939 | . 215 724 Core 177 | . 37 140 Absorbed by Shields . | . . . Core Remaining (%) 92 | 100 85 . Volleys Fired 47 | . 31 16 Largest 2 | . 1 2 Hottest 150 | . 20 150 Shots Fired 53 | . 31 22 Gun 41 | . 31 10 Cannon 12 | . . 12 Launcher . | . . . Special . | . . . Kinetic 41 | . 31 10 Thermal 12 | . . 12 Explosive . | . . . Electromagnetic . | . . . Robot Hit Streak 3 | . 3 3 Robot Miss Streak 6 | . 5 6 Penetration Max . | . . . Secondary Targets . | . . . Shots Hit Robots 17 | . 8 9 Core Hits 11 | . 5 6 Critical Kills . | . . . Critical Parts Destroyed . | . . . Critical Strikes . | . . . Melee Attacks . | . . . Impact . | . . . Slashing . | . . . Piercing . | . . . Sneak Attacks . | . . . Combat Hostiles . | . . . Follow-up Attacks . | . . . Damage Inflicted 374 | . 109 265 Guns 199 | . 109 90 Cannons 175 | . . 175 Explosions . | . . . Melee . | . . . Ramming . | . . . Kinetic 199 | . 109 90 Thermal 175 | . . 175 Explosive . | . . . Electromagnetic . | . . . Impact . | . . . Slashing . | . . . Piercing . | . . . Highest Corruption . | . . . Average Corruption . | . . . Corruption Purged . | . . . Corruption Blocked . | . . . Overload Shots . | . . . Overflow Damage . | . . . Projectiles . | . . . Explosions . | . . . Melee . | . . . Knockbacks . | . . . Impact . | . . . Kinetic . | . . . Secondary . | . . . Self-Inflicted Damage . | . . . Shots . | . . . Rammed . | . . . Targets Rammed . | . . . Kicked . | . . . Crushed . | . . . Highest Temperature 342 | . . 342 Average Temperature 190 | . . 190 Received Heat Transfer 81 | . . 81 Siege Activations . | . . . Martial Activations . | . . . Shielding Activations . | . . . Robots Disrupted . | . . . Combat Hostiles . | . . . Robots Corrupted . | . . . Combat Hostiles . | . . . Parts Fried . | . . . Impact Corruptions . | . . . Robots Melted . | . . . Combat Hostiles . | . . . Parts Melted . | . . . Heat Transferred 259 | . . 259 Parts Sabotaged . | . . . Parts Stolen . | . . . Parts Stripped . | . . . Power Chain Reactions . | . . . Alert | -11 -10 -9 ------- Run | Yrd Mat Mat Maximum Alert Level . | . . . Low Security (%) 100 | 100 100 100 Level 1 . | . . . Level 2 . | . . . Level 3 . | . . . Level 4 . | . . . Level 5 . | . . . High Security . | . . . Max Security . | . . . Peak Influence 64 | . 50 64 Initial . | . . . Average 8 | . 7 21 Influence Increases 174 | . 70 104 Destroy 0b10 Robot/C 160 | . 60 100 Destroy Leader 10 | . 10 . Destroy Structure 4 | . . 4 Influence Decreases 140 | . 70 70 Time Decay 120 | . 70 50 Lost Part 20 | . . 20 Squads Dispatched . | . . . Investigation . | . . . Extermination . | . . . Reinforcement . | . . . Assault . | . . . Garrison . | . . . Intercept . | . . . Searches Triggered . | . . . Construction Impeded . | . . . Haulers Reinforced . | . . . Active Scanning Responses . | . . . Cargo Convoy Interrupts . | . . . Stealth | -11 -10 -9 --------- Run | Yrd Mat Mat Distress Signals . | . . . Communications Jammed . | . . . Distress Signals . | . . . Times Spotted 21 | . 8 13 Peak Tracking Total 10 | . 3 10 Tactical Retreats . | . . . Traps | -11 -10 -9 ------- Run | Yrd Mat Mat Traps Triggered . | . . . Indirectly . | . . . Trap Hack Attempts . | . . . Triggered . | . . . Disarmed . | . . . Reprogrammed . | . . . Reused . | . . . Traps Extracted . | . . . Installed . | . . . Triggered . | . . . Machines | -11 -10 -9 ---------- Run | Yrd Mat Mat Machines Disabled . | . . . Max in Single Turn . | . . . Machines Repaired . | . . . Machines Dismantled . | . . . Machines Sabotaged . | . . . Overloaded Fab Kills . | . . . Hacking | -11 -10 -9 --------- Run | Yrd Mat Mat Machines Accessed 1 | . 1 . Terminals 1 | . 1 . Fabricators . | . . . Repair Stations . | . . . Recycling Units . | . . . Scanalyzers . | . . . Garrison Access . | . . . Total Hacks 1 | . 1 . Successful 1 | . 1 . Failed . | . . . Catastrophic . | . . . Database Lockouts . | . . . Manual . | . . . Terminals 1 | . 1 . Fabricators . | . . . Repair Stations . | . . . Recycling Units . | . . . Scanalyzers . | . . . Garrison Access . | . . . Terminal Hacks 1 | . 1 . Zone Layout 1 | . 1 . Fabricator Hacks . | . . . Repair Station Hacks . | . . . Recycling Unit Hacks . | . . . Scanalyzer . | . . . Garrison Access Hacks . | . . . Unauthorized Hacks . | . . . Terminals . | . . . Fabricators . | . . . Repair Stations . | . . . Recycling Units . | . . . Scanalyzers . | . . . Garrison Access . | . . . Data Cores Recovered . | . . . Used . | . . . Hacking Detections . | . . . Full Trace Events . | . . . Feedback Events . | . . . Feedback Blocked . | . . . Robot Schematics Acquired . | . . . Robots Built . | . . . Authchips . | . . . Time . | . . . Total Robot Build Rating . | . . . Part Schematics Acquired . | . . . Parts Built . | . . . Authchips . | . . . Time . | . . . Total Part Build Rating . | . . . Part Studies Acquired . | . . . Parts Repaired . | . . . Time . | . . . Parts Recycled . | . . . Recycled Matter . | . . . Retrieved Matter . | . . . Retrieved Components . | . . . Parts Scanalyzed . | . . . Part Schematics Acquired . | . . . Parts Damaged . | . . . Bothacking | -11 -10 -9 ------------ Run | Yrd Mat Mat Used RIF Installer . | . . . Robots Hacked . | . . . Non-combat . | . . . Combat . | . . . Robot Hacks Applied . | . . . Relay Couplers Released . | . . . Fabnet Peak Effective % . | . . . Robots Rewired . | . . . Allies Hacked . | . . . Hacks Repelled . | . . . Allies | -11 -10 -9 -------- Run | Yrd Mat Mat Total Allies . | . . . Largest Group . | . . . Highest-Rated Group . | . . . Highest-Rated Ally . | . . . Total Orders . | . . . Ally Attacks . | . . . Total Damage . | . . . Kills . | . . . Allies Corrupted . | . . . Allies Melted . | . . . Intel | -11 -10 -9 ------- Run | Yrd Mat Mat Active Infowar (turns) . | . . . Robot Analysis Total . | . . . Derelict Logs Recovered . | . . . Drone Launches . | . . . Drone Recoveries . | . . . Exploration | -11 -10 -9 ------------- Run | Yrd Mat Mat Turns Passed 691 | 91 476 124 Spaces Moved 406 | 65 256 85 Core 25 | 23 . 2 Treads 318 | 42 256 20 Legs . | . . . Wheels . | . . . Hover . | . . . Flight 63 | . . 63 Fastest Speed 34 | 50 160 34 Average Speed 135 | 121 160 73 Slowest Speed 450 | 160 160 450 Overloaded Moves . | . . . Propulsion Burnouts . | . . . Robots Hopped . | . . . Potential Cave-ins . | . . . Cave-ins Triggered . | . . . Exploration Rate (%) 17 | 4 37 12 Regions Visited 2 Branch Regions . Pre-discovered Areas . | . . . Known Exits Taken . | . . . Unknown Exits Taken 2 | 1 1 . Scrap Searched . | . . . Spaces Dug . | . . . Terrain Destroyed 5 | . . 5 Melee . | . . . Projectile 5 | . . 5 AOE . | . . . Terrain Rammed . | . . . Walls Destroyed . | . . . Machines Disabled . | . . . Actions | -11 -10 -9 --------- Run | Yrd Mat Mat Total 495 | 78 292 125 Wait . | . . . Move 404 | 64 255 85 Hop . | . . . Pick Up 20 | 7 5 8 Fast Attach . | . . . Attach 9 | 6 1 2 Detach 2 | . . 2 Swap 6 | . . 6 Drop 7 | 1 . 6 Fire 47 | . 31 16 Melee . | . . . Ram . | . . . Kick . | . . . Crush . | . . . Escape Stasis . | . . . Rewire . | . . . Trap . | . . . Miscellaneous . | . . . Route ------- -11/Scrapyard -10/Materials (discovered 2 exits: [*Mat] / [*Min]) -9/Materials History --------- Turn | Location | Event 14 | -11/Scrapyard | Discovered new exit (range 14) 92 | -11/Scrapyard | Entered Materials 136 | -10/Materials | Discovered new exit (range 15) 268 | -10/Materials | Discovered new exit (range 14) 302 | -10/Materials | Build established: Mutant 568 | -10/Materials | Entered another Materials area 568 | -9/Materials | Evolved 2 slots: Propulsion x1, Utility x1 692 | -9/Materials | Self-destructed Last Messages --------------- Dropped EM Pulse Gun. Dropped Ion Engine. Acquired Deuterium Engine. Acquired Hvy. Particle Cannon. K-01 Serf collects debris. Acquired Hvy. Particle Cannon. K-01 Serf collects debris. Acquired Hvy. Particle Cannon. R-06 Scavenger collects Ion Engine. R-06 Scavenger collects Heat Sink. R-06 Scavenger collects EM Pulse Gun. G-34 Mercenary destroyed. R-06 Scavenger collects Ion Engine. S-10 Pest destroyed. G-34 Mercenary destroyed. Lgt. Treads destroyed. U-05 Engineer builds a Wall. M-13 Machinist repairs S-10 Pest Lgt. Ion Engine. K-01 Serf collects debris. Map ----- +----------------------------------------------------+ | ????????????????????????????????????????????????? | | ????????????????????????????????????????????????? | | ????????????????????????????????????????????????? | | ????????????????????????????????????????????????? | | ????????????????????????????????????????????????? | | ????????????????????????????????????????????????? | | ????????????????????????????????????????????????? | | ????????????????????????????????????????????????? | | ????????????????????????????????????????????????? | | ????????????????????????????????????????????????? | | ?????????????????????#####??????????????????????? | | ??????????????????????""" ??????????????????????? | | ??????????????????????"R" ??????????????????????? | | ????????????????#?????? " ??????????????????????? | | ????????????????+ ????? ??????????????????????? | | ????????????????# ????? ??????????????????????? | | ????????????????# ???? ??????????? ##????????? | | ????????????????# #####+######## [ #????????? | | ????????????????# k t #????????? | | ????????????????# #????????? | | ????????????????# au %= #????????? | | ??????????????????######sm ####### #????????? | | ???????????????????????#!=s# #??????????????????? | | ??????????????????????##*su*#???????????????????? | | ??????????????????????##Yss#####????????????????? | | ??????????????????????## @[ ]]#????????????????? | | ???????????????????????# ]]#????????????????? | | ?????# ????????????????#k #????????????????? | | ?????# ####+########## #????????????????? | | " # [ =* #????????????????? | | " + * [ ===#????????????????? | | ?????# #####????????????????? | | ?????### ############### #????????????????????? | | ????????????????# # #????????????????????? | | ????????????????# """ # #????????????????????? | | ????????????????#[ """ + #????????????????????? | | ????????????????# """ # #????????????????????? | | ????????????????# # #????????????????????? | | ????????????????# "T"?# #?######?????????????? | | ????????????????######?# #? #?????????????? | | ???????????????????????# # #?????????????? | | ???????????????????????# # "" #?????????????? | | ???????????????????????# + """ #?????????????? | | ???????????????????????# # S" #?????????????? | | ???????????????????????# # ! #?????????????? | | ??????????????????????## ########?????????????? | | ?????????????? ###+### ########????????????? | | ??????????# #????????????? | | ???????????? " T #????????????? | | ??????????# #????????????? | +----------------------------------------------------+ Best States ------------- Heat Dissipation 28 Energy Generation 14 Energy Capacity 275 Matter Stores 259 Matter Capacity 300 Sight Range 16 Terrain Scan Density 10 Weapon Shielding 33 Evasion (%) 63 Recoil Reduction 2 Item Schematics ----------------- None Robot Schematics ------------------ None Fabricated ------------ Nothing Repaired ---------- Nothing Studied --------- None Alien Tech Used ----------------- None Achievements -------------- None Challenges ------------ None Game ------ Seed ThermalMediumRefractor Manual? 0 Play Time 00:06:47 Cumulative 4.8 hours Start 2026.03.22 @ 14:46:13 End 2026.03.22 @ 22:22:37 Sessions 3 Manual Loads 0 Difficulty Rogue Special Mode None Game No. 17 Rogue 17 Adventurer 0 Explorer 0 Win Type - Total 0 Types 0/0/0/0/0/0/0/0/0/0 Lore% 2 Gallery% 9 Achievement% 10 Wizard Run 0 Options --------- Layout 1 ASCII 0 Keyboard 0 Movement Arrows Keybinds 0 Fullscreen 1 Font 24/Proggy Map View 50x35 Zoom Use 0% Tactical HUD 0 Map Filters NONE Filters NONE Steam 1 RUN: 520bb39e-8df5-42e8-8227-4aff40e6395b